fUST/lending_fUST_20240719
["ID","MTS","AMOUNT","RATE_DAILY","PERIOD"]
[332598262,1721328648132,-366.562735,0.00021643,2]
[332598264,1721328648141,-366.562735,0.00021643,2]
[332598266,1721328648151,-366.562735,0.00021643,2]
[332598268,1721328648161,-366.562735,0.00021643,2]
[332598270,1721328648172,-366.562735,0.00021643,2]
[332598290,1721328648372,-151.0,0.00021643,2]
[332598293,1721328648384,-243.640517,0.00021643,2]
[332598295,1721328648393,-151.0,0.00021643,2]
[332598297,1721328648403,-151.0,0.00021643,2]
[332598299,1721328648415,-151.0,0.00021643,2]
[332598301,1721328648424,-151.0,0.00021643,2]
[332598302,1721328648433,-151.0,0.00021643,2]
[332598304,1721328648442,-151.0,0.00021643,2]
[332598306,1721328648451,-202.798001,0.00021643,2]
[332598308,1721328648460,-202.798001,0.00021643,2]
[332598310,1721328648470,-151.0,0.00021643,2]
[332598312,1721328648479,-151.0,0.00021643,2]
[332598314,1721328648489,-202.798001,0.00021643,2]
[332598316,1721328648499,-236.47046,0.00021643,2]
[332598318,1721328648509,-202.798001,0.00021643,2]
[332598320,1721328648520,-202.798001,0.00021643,2]
[332598323,1721328648531,-202.798001,0.00021643,2]
[332598325,1721328648541,-202.798001,0.00021643,2]
[332598327,1721328648551,-202.798001,0.00021643,2]
[332598329,1721328648561,-202.798001,0.00021643,2]
[332598331,1721328648572,-202.798001,0.00021643,2]
[332598333,1721328648583,-202.798001,0.00021643,2]
[332598335,1721328648593,-202.798001,0.00021643,2]
[332598337,1721328648603,-151.0,0.00021643,2]
[332598339,1721328648613,-151.0,0.00021643,2]
[332598341,1721328648623,-151.0,0.00021643,2]
[332598343,1721328648633,-151.0,0.00021643,2]
[332598345,1721328648644,-151.0,0.00021643,2]
[332598347,1721328648656,-151.0,0.00021643,2]
[332598349,1721328648668,-151.0,0.00021643,2]
[332598351,1721328648678,-151.0,0.00021643,2]
[332598353,1721328648688,-151.0,0.00021643,2]
[332598355,1721328648699,-151.0,0.00021643,2]
[332598357,1721328648709,-151.0,0.00021643,2]
[332598359,1721328648719,-151.0,0.00021643,2]
[332598361,1721328648729,-151.0,0.00021643,2]
[332598363,1721328648739,-161.36239,0.00021643,2]
[332598365,1721328648749,-161.36239,0.00021643,2]
[332598367,1721328648760,-161.36239,0.00021643,2]
[332598369,1721328648770,-161.36239,0.00021643,2]
[332598371,1721328648779,-161.36239,0.00021643,2]
[332598373,1721328648790,-161.36239,0.00021643,2]
[332598375,1721328648800,-161.36239,0.00021643,2]
[332598377,1721328648810,-161.36239,0.00021643,2]
[332598379,1721328648821,-161.36239,0.00021643,2]
[332598381,1721328648832,-161.36239,0.00021643,2]
[332598383,1721328648842,-151.0,0.00021643,2]
[332598385,1721328648853,-161.36239,0.00021643,2]
[332598387,1721328648863,-161.36239,0.00021643,2]
[332598389,1721328648874,-151.0,0.00021643,2]
[332598391,1721328648884,-151.0,0.00021643,2]
[332598393,1721328648896,-151.0,0.00021643,2]
[332598395,1721328648906,-151.0,0.00021643,2]
[332598396,1721328648918,-151.0,0.00021643,2]
[332598398,1721328648931,-775.718552,0.00021643,2]
[332598400,1721328648941,-775.718552,0.00021643,2]
[332598402,1721328648951,-775.718552,0.00021643,2]
[332598404,1721328648962,-775.718552,0.00021643,2]
[332598406,1721328648974,-775.718552,0.00021643,2]
[332598408,1721328648984,-775.718552,0.00021643,2]
[332598410,1721328648996,-775.718552,0.00021643,2]
[332598412,1721328649007,-775.718552,0.00021643,2]
[332598414,1721328649018,-775.718552,0.00021643,2]
[332598416,1721328649028,-775.718552,0.00021643,2]
[332598417,1721328649037,-775.718552,0.00021643,2]
[332598419,1721328649048,-775.718552,0.00021643,2]
[332598421,1721328649058,-151.0,0.00021643,2]
[332598423,1721328649070,-151.0,0.00021643,2]
[332598425,1721328649080,-151.0,0.00021643,2]
[332598427,1721328649090,-151.0,0.00021643,2]
[332598430,1721328649101,-153.066164,0.00021643,2]
[332598431,1721328649112,-296.351323,0.00021643,2]
[332598434,1721328649122,-340.453857,0.00021643,2]
[332598436,1721328649132,-340.453857,0.00021643,2]
[332598438,1721328649143,-340.453857,0.00021643,2]
[332598440,1721328649152,-340.453857,0.00021643,2]
[332598441,1721328649164,-340.453857,0.00021643,2]
[332598444,1721328649174,-340.453857,0.00021643,2]
[332598445,1721328649183,-340.453857,0.00021643,2]
[332598447,1721328649194,-340.453857,0.00021643,2]
[332598449,1721328649204,-340.453857,0.00021643,2]
[332598451,1721328649215,-340.453857,0.00021643,2]
[332598453,1721328649226,-340.453857,0.00021643,2]
[332598456,1721328649238,-340.453857,0.00021643,2]
[332598458,1721328649248,-151.0,0.00021643,2]
[332598460,1721328649259,-151.0,0.00021643,2]
[332598461,1721328649268,-151.0,0.00021643,2]
[332598463,1721328649279,-151.0,0.00021643,2]
[332598465,1721328649289,-239.95671,0.00021643,2]
[332598467,1721328649299,-151.0,0.00021643,2]
[332598469,1721328649309,-151.0,0.00021643,2]
[332598471,1721328649320,-151.0,0.00021643,2]
[332598473,1721328649330,-151.0,0.00021643,2]
[332598475,1721328649341,-151.0,0.00021643,2]
[332598477,1721328649352,-151.0,0.00021643,2]
[332598479,1721328649362,-151.0,0.00021643,2]
[332598481,1721328649372,-151.0,0.00021643,2]
[332598483,1721328649382,-151.447748,0.00021643,2]
[332598485,1721328649393,-151.0,0.00021643,2]
[332598487,1721328649403,-151.0,0.00021643,2]
[332598488,1721328649414,-151.0,0.00021643,2]
[332598490,1721328649425,-151.0,0.00021643,2]
[332598492,1721328649436,-151.0,0.00021643,2]
[332598494,1721328649447,-1581.740068,0.00021643,2]
[332598496,1721328649457,-1581.740068,0.00021643,2]
[332598498,1721328649468,-1581.740068,0.00021643,2]
[332598500,1721328649479,-1581.740068,0.00021643,2]
[332598502,1721328649489,-1581.740068,0.00021643,2]
[332598504,1721328649499,-1581.740068,0.00021643,2]
[332598507,1721328649510,-1581.740068,0.00021643,2]
[332598508,1721328649520,-1581.740068,0.00021643,2]
[332598511,1721328649530,-1581.740068,0.00021643,2]
[332598513,1721328649540,-1581.740068,0.00021643,2]
[332598515,1721328649551,-1581.740068,0.00021643,2]
[332598517,1721328649561,-1581.740068,0.00021643,2]
[332598519,1721328649572,-3000.0,0.0002165,2]
[332598521,1721328649582,-3000.0,0.0002166,2]
[332598523,1721328649592,-3000.0,0.0002167,2]
[332598525,1721328649603,-3000.0,0.0002168,2]
[332598527,1721328649614,-3000.0,0.0002169,2]
[332598529,1721328649625,-151.0,0.000217,2]
[332598531,1721328649635,-399.175102,0.000217,2]
[332598533,1721328649644,-399.175102,0.000217,2]
[332598535,1721328649654,-3000.0,0.000217,2]
[332598537,1721328649666,-155.965023,0.000217,2]
[332598539,1721328649676,-389.559794,0.000217,2]
[332598540,1721328649686,-389.559794,0.000217,2]
[332598542,1721328649696,-710.003708,0.000217,2]
[332598544,1721328649706,-710.003708,0.000217,2]
[332598546,1721328649716,-151.0,0.000217,2]
[332598548,1721328649725,-366.562735,0.000217,2]
[332598550,1721328649735,-366.562735,0.000217,2]
[332598552,1721328649744,-151.0,0.000217,2]
[332598554,1721328649753,-202.798001,0.000217,2]
[332598556,1721328649764,-202.798001,0.000217,2]
[332598558,1721328649776,-151.733331,0.000217,2]
[332598560,1721328649785,-151.0,0.000217,2]
[332598562,1721328649796,-161.36239,0.000217,2]
[332598564,1721328649806,-161.36239,0.000217,2]
[332598567,1721328649816,-155.506164,0.000217,2]
[332598569,1721328649826,-775.718552,0.000217,2]
[332598570,1721328649837,-775.718552,0.000217,2]
[332598572,1721328649847,-340.453857,0.000217,2]
[332598574,1721328649857,-340.453857,0.000217,2]
[332598576,1721328649867,-151.0,0.000217,2]
[332598578,1721328649877,-151.0,0.000217,2]
[332598580,1721328649887,-1581.740068,0.000217,2]
[332598582,1721328649897,-1581.740068,0.000217,2]
[332598584,1721328649907,-3000.0,0.0002171,2]
[332598586,1721328649919,-3000.0,0.0002172,2]
[332598588,1721328649930,-3000.0,0.0002173,2]
[332598590,1721328649940,-3000.0,0.0002174,2]
[332598592,1721328649951,-797.230395,0.0002174,2]
[332598594,1721328649963,-797.230395,0.0002174,2]
[332598596,1721328649973,-151.0,0.0002174,2]
[332598598,1721328649982,-174.470289,0.0002174,2]
[332598600,1721328649994,-174.470289,0.0002174,2]
[332598602,1721328650005,-3000.0,0.0002175,2]
[332598604,1721328650014,-171.33116,0.0002175,2]
[332598606,1721328650024,-3000.0,0.0002176,2]
[332598608,1721328650034,-161.36239,0.0002176,2]
[332598610,1721328650044,-161.36239,0.0002176,2]
[332598612,1721328650054,-775.718552,0.0002176,2]
[332598614,1721328650064,-775.718552,0.0002176,2]
[332598616,1721328650073,-3000.0,0.0002177,2]
[332598618,1721328650083,-340.453857,0.0002177,2]
[332598620,1721328650093,-340.453857,0.0002177,2]
[332598622,1721328650103,-151.0,0.0002177,2]
[332598624,1721328650113,-151.0,0.0002177,2]
[332598626,1721328650123,-1581.740068,0.0002177,2]
[332598628,1721328650132,-1581.740068,0.0002177,2]
[332598629,1721328650142,-3000.0,0.0002178,2]
[332598631,1721328650152,-151.0,0.0002179,2]
[332598633,1721328650162,-3000.0,0.0002179,2]
[332598635,1721328650172,-710.003708,0.0002179,2]
[332598638,1721328650183,-710.003708,0.0002179,2]
[332598640,1721328650193,-151.0,0.0002179,2]
[332598642,1721328650202,-366.562735,0.0002179,2]
[332598644,1721328650212,-366.562735,0.0002179,2]
[332598645,1721328650222,-151.0,0.0002179,2]
[332598648,1721328650232,-202.798001,0.0002179,2]
[332598650,1721328650242,-202.798001,0.0002179,2]
[332598652,1721328650252,-3369.177371,0.000218,2]
[332598654,1721328650263,-167.22373,0.00021894,2]
[332598656,1721328650272,-324.399456,0.000219,9]
[332598658,1721328650282,-399.175102,0.00021908,2]
[332598660,1721328650291,-399.175102,0.00021908,2]
[332598662,1721328650301,-2000.0,0.00021908,2]
[332598664,1721328650311,-291.5299491,0.00021917,2]
[332598666,1721328650321,-18.47621607,0.00021917,2]
[332598668,1721328650331,-500.0,0.00021917,2]
[332598670,1721328650342,-500.0,0.00021917,2]
[332598672,1721328650353,-500.0,0.00021917,2]
[332598674,1721328650364,-500.0,0.00021917,2]
[332598676,1721328650375,-232.95849691,0.00021917,2]
[332598679,1721328650386,-500.0,0.00021917,2]
[332598681,1721328650396,-500.0,0.00021917,2]
[332598683,1721328650407,-500.0,0.00021917,2]
[332598685,1721328650418,-500.0,0.00021917,2]
[332598687,1721328650428,-500.0,0.00021917,2]
[332598689,1721328650439,-500.0,0.00021917,2]
[332598691,1721328650450,-500.0,0.00021917,2]
[332598693,1721328650459,-500.0,0.00021917,2]
[332598695,1721328650469,-500.0,0.00021917,2]
[332598697,1721328650479,-500.0,0.00021917,2]
[332598699,1721328650491,-500.0,0.00021917,2]
[332598701,1721328650502,-500.0,0.00021917,2]
[332598703,1721328650511,-500.0,0.00021917,2]
[332598705,1721328650521,-438.02356023,0.00021917,2]
[332598707,1721328650530,-500.0,0.00021917,2]
[332598709,1721328650539,-500.0,0.00021917,2]
[332598711,1721328650549,-500.0,0.00021917,2]
[332598713,1721328650558,-500.0,0.00021917,2]
[332598715,1721328650567,-500.0,0.00021917,2]
[332598717,1721328650576,-500.0,0.00021917,2]
[332598719,1721328650586,-500.0,0.00021917,2]
[332598720,1721328650595,-500.0,0.00021917,2]
[332598722,1721328650604,-500.0,0.00021917,2]
[332598724,1721328650614,-500.0,0.00021917,2]
[332598726,1721328650623,-500.0,0.00021917,2]
[332598728,1721328650633,-500.0,0.00021917,2]
[332598730,1721328650642,-504.22135143,0.00021917,2]
[332598732,1721328650652,-500.0,0.00021917,2]
[332598734,1721328650661,-500.0,0.00021917,2]
[332598736,1721328650672,-500.0,0.00021917,2]
[332598738,1721328650682,-500.0,0.00021917,2]
[332598740,1721328650691,-500.0,0.00021917,2]
[332598742,1721328650701,-500.0,0.00021917,2]
[332598744,1721328650712,-500.0,0.00021917,2]
[332598746,1721328650722,-500.0,0.00021917,2]
[332598748,1721328650731,-500.0,0.00021917,2]
[332598750,1721328650741,-500.0,0.00021917,2]
[332598752,1721328650751,-155.21043325,0.00021917,2]
[332598754,1721328650761,-500.0,0.00021917,2]
[332598756,1721328650771,-273.27086151,0.00021917,2]
[332598758,1721328650781,-500.0,0.00021917,2]
[332598760,1721328650791,-500.0,0.00021917,2]
[332598762,1721328650801,-502.36852615,0.00021917,2]
[332598764,1721328650811,-500.0,0.00021917,2]
[332598766,1721328650822,-500.0,0.00021917,2]
[332598768,1721328650832,-500.0,0.00021917,2]
[332598770,1721328650842,-500.0,0.00021917,2]
[332598772,1721328650851,-500.0,0.00021917,2]
[332598774,1721328650861,-610.64,0.00021917,2]
[332598776,1721328650870,-500.0,0.00021917,2]
[332598778,1721328650880,-500.0,0.00021917,2]
[332598780,1721328650890,-328.13678551,0.00021917,2]
[332598782,1721328650900,-500.0,0.00021917,2]
[332598784,1721328650910,-500.0,0.00021917,2]
[332598786,1721328650922,-596.31,0.00021917,2]
[332598787,1721328650936,-500.0,0.00021917,2]
[332598790,1721328650946,-500.0,0.00021917,2]
[332598791,1721328650956,-500.0,0.00021917,2]
[332598793,1721328650968,-500.0,0.00021917,2]
[332598795,1721328650979,-500.0,0.00021917,2]
[332598797,1721328650991,-500.0,0.00021917,2]
[332598799,1721328651001,-500.0,0.00021917,2]
[332598801,1721328651012,-500.0,0.00021917,2]
[332598803,1721328651021,-500.0,0.00021917,2]
[332598805,1721328651031,-500.0,0.00021917,2]
[332598807,1721328651041,-204.42906775,0.00021917,2]
[332598809,1721328651051,-500.0,0.00021917,2]
[332598811,1721328651060,-500.0,0.00021917,2]
[332598813,1721328651070,-500.0,0.00021917,2]
[332598815,1721328651079,-500.0,0.00021917,2]
[332598817,1721328651091,-500.0,0.00021917,2]
[332598819,1721328651101,-209.19933346,0.00021917,2]
[332598821,1721328651110,-500.0,0.00021917,2]
[332598823,1721328651121,-500.0,0.00021917,2]
[332598825,1721328651132,-500.0,0.00021917,2]
[332598828,1721328651143,-500.0,0.00021917,2]
[332598830,1721328651154,-506.55279088,0.00021917,2]
[332598831,1721328651163,-500.0,0.00021917,2]
[332598834,1721328651175,-500.0,0.00021917,2]
[332598836,1721328651186,-500.0,0.00021917,2]
[332598838,1721328651198,-500.0,0.00021917,2]
[332598840,1721328651209,-500.0,0.00021917,2]
[332598842,1721328651219,-500.0,0.00021917,2]
[332598844,1721328651230,-500.0,0.00021917,2]
[332598846,1721328651241,-509.288735,0.00021917,2]
[332598848,1721328651253,-500.0,0.00021917,2]
[332598850,1721328651263,-500.0,0.00021917,2]
[332598852,1721328651275,-500.0,0.00021917,2]
[332598854,1721328651285,-500.0,0.00021917,2]
[332598856,1721328651296,-500.0,0.00021917,2]
[332598858,1721328651306,-500.0,0.00021917,2]
[332598860,1721328651315,-500.0,0.00021917,2]
[332598862,1721328651325,-500.0,0.00021917,2]
[332598864,1721328651335,-275.82150353,0.00021917,2]
[332598866,1721328651344,-500.0,0.00021917,2]
[332598868,1721328651354,-505.01860427,0.00021917,2]
[332598870,1721328651364,-500.0,0.00021917,2]
[332598872,1721328651374,-500.0,0.00021917,2]
[332598874,1721328651384,-508.05722532,0.00021917,2]
[332598876,1721328651395,-500.0,0.00021917,2]
[332598878,1721328651407,-500.0,0.00021917,2]
[332598880,1721328651418,-500.0,0.00021917,2]
[332598882,1721328651429,-500.0,0.00021917,2]
[332598884,1721328651439,-500.0,0.00021917,2]
[332598886,1721328651451,-500.0,0.00021917,2]
[332598888,1721328651461,-500.0,0.00021917,2]
[332598890,1721328651471,-500.0,0.00021917,2]
[332598892,1721328651482,-500.0,0.00021917,2]
[332598894,1721328651493,-500.0,0.00021917,2]
[332598896,1721328651503,-500.0,0.00021917,2]
[332598898,1721328651514,-500.0,0.00021917,2]
[332598900,1721328651525,-500.0,0.00021917,2]
[332598902,1721328651536,-500.0,0.00021917,2]
[332598905,1721328651548,-500.0,0.00021917,2]
[332598907,1721328651559,-500.0,0.00021917,2]
[332598909,1721328651570,-500.0,0.00021917,2]
[332598911,1721328651580,-500.0,0.00021917,2]
[332598913,1721328651591,-508.48204414,0.00021917,2]
[332598915,1721328651600,-500.0,0.00021917,2]
[332598917,1721328651610,-500.0,0.00021917,2]
[332598919,1721328651620,-500.0,0.00021917,2]
[332598921,1721328651630,-500.0,0.00021917,2]
[332598923,1721328651641,-500.0,0.00021917,2]
[332598925,1721328651652,-500.0,0.00021917,2]
[332598927,1721328651663,-233.78930686,0.00021917,2]
[332599562,1721329259686,248.68489287,9.999e-05,2]
[332599565,1721329289692,248.68489287,9.999e-05,2]
[332599566,1721329325219,248.68489287,0.0001212,2]
[332599570,1721329375130,349.13625297,9.999e-05,2]
[332599571,1721329389205,248.68489287,0.00014691,2]
[332599572,1721329408075,847.79900167,0.0001212,2]
[332599581,1721329468571,353.06707028,0.00014691,2]
[332599582,1721329469754,159.76779207,0.00014691,2]
[332599585,1721329699812,-248.68489287,0.00017807,2]
[332599587,1721329699842,-477.65600283,0.00017882,2]
[332599588,1721329725092,-744.69398156,0.00017403,2]
[332599591,1721329809026,886.69945743,9.999e-05,2]
[332599619,1721329833628,-300.0,0.00017402,2]
[332599621,1721329833641,-287.51223328,0.00017403,2]
[332599624,1721329833656,-4766.78545079,0.00017403,2]
[332599626,1721329833670,-185.81958042,0.000189,2]
[332599628,1721329833685,-327.97002489,0.00019,2]
[332599630,1721329833698,-180.0,0.00019142,2]
[332599632,1721329833712,-156.35946513,0.00020999,2]
[332599634,1721329833726,-248.15366783,0.00021,2]
[332599635,1721329833739,-336.55100473,0.00021012,2]
[332599636,1721329833780,-418.89313081,0.00021012,2]
[332599667,1721329838486,-3509.58806381,0.00021012,2]
[332599958,1721329881127,3722.68092257,0.0001212,2]
[332599959,1721329888378,156.35946513,0.0001212,2]
[332599960,1721329914496,345.53091528,0.00014691,2]
[332599962,1721329928388,156.35946513,0.00014691,2]
[332599966,1721330093889,156.35946513,9.999e-05,2]
[332599967,1721330146410,156.35946513,0.0001212,2]
[332599968,1721330194903,156.35946513,0.00014691,2]
[332599973,1721330429942,156.35946513,9.999e-05,2]
[332599978,1721330481467,306.03343195,0.0001212,2]
[332599979,1721330556570,542.19950564,9.999e-05,2]
[332599982,1721330615067,183.80905118,0.00014691,2]
[332599986,1721330635596,9304.02627427,0.0001212,2]
[332599987,1721330673459,156.31654489,0.00014691,2]
[332599991,1721330712862,287.30766407,0.0001,2]
[332599998,1721330881865,332.15929955,0.0001,2]
[332600008,1721330971089,-343.37023537,0.00018899,2]
[332600010,1721330971123,-150.0,0.000189,2]
[332600012,1721330971153,-197.0642227,0.00019503,2]
[332600042,1721331033991,-817.85691756,0.0002,5]
[332600043,1721331034003,-2733.77595816,0.0002,2]
[332600053,1721331039547,-13492.00405564,0.0002,2]
[332600054,1721331039559,-380.097,0.0002,2]
[332600113,1721331040860,-3430.87328144,0.0002,2]
[332600114,1721331040870,-2048.35498412,0.0002,2]
[332600115,1721331040879,-845.07173444,0.0002,2]
[332600116,1721331040940,-26314.32116874,0.0002,2]
[332600117,1721331040949,-1503.30173098,0.000209,2]
[332600118,1721331040959,-361.15583212,0.00021,2]
[332600119,1721331040968,-31685.76592577,0.00021,2]
[332600120,1721331040978,-2177.03099522,0.00021012,2]
[332600121,1721331040987,-567.740011,0.00021096,2]
[332600122,1721331040997,-620.06110788,0.00021195,2]
[332600123,1721331041009,-166.666666,0.0002137,2]
[332600124,1721331041018,-546.1,0.00021428,2]
[332600125,1721331041027,-1408.0,0.00021557,2]
[332600126,1721331041036,-150.0,0.00021557,2]
[332600127,1721331041046,-150.0,0.000216,2]
[332600128,1721331041056,-2000.0,0.00021817,2]
[332600129,1721331041067,-184.23996685,0.00021817,2]
[332600130,1721331041079,-300.0,0.00021846,2]
[332600131,1721331041088,-306.9,0.00021897,3]
[332600132,1721331041097,-711.9399741,0.00021907,3]
[332600270,1721331975911,175.63419432,0.0002505,120]
[332600353,1721332237835,-251.46885275,0.00019,2]
[332600355,1721332237845,-16.1246331,0.00019047,2]
[332600779,1721332771856,2842.54359995,0.00015,2]
[332600780,1721332842063,182.583281,0.00015,2]
[332600781,1721332846715,161.87110712,0.00015,2]
[332600788,1721333157369,2842.54359995,0.00015,2]
[332600790,1721333276233,561.4272298,9.999e-05,2]
[332600791,1721333306489,239.89881475,0.0001212,2]
[332600792,1721333307898,375.39217735,0.0001212,2]
[332600794,1721333401848,-204.51764081,0.00018081,2]
[332600796,1721333401877,-605.38061794,0.00018182,2]
[332600798,1721333401914,-491.25802601,0.00018182,2]
[332600872,1721333437976,-1096.63864395,0.00018182,2]
[332600875,1721333437985,-12.44310105,0.00018694,2]
[332600880,1721333438028,-146.62043095,0.00018694,2]
[332600882,1721333438038,-461.390093,0.00018728,2]
[332600884,1721333438047,-150.0,0.000189,2]
[332600886,1721333438058,-191.29734535,0.00018947,2]
[332600888,1721333438068,-250.0,0.0001904,2]
[332600890,1721333438079,-278.5798921,0.00019044,2]
[332600893,1721333438089,-633.76168226,0.00019046,2]
[332600896,1721333438098,-159.063532,0.00019968,2]
[332600898,1721333438108,-300.0,0.00019999,2]
[332600900,1721333438117,-300.0,0.00019999,2]
[332600902,1721333438127,-408.92845878,0.0002,5]
[332600904,1721333438137,-6879.79283946,0.0002,2]
[332600906,1721333438147,-8023.19074122,0.0002,2]
[332600908,1721333438156,-2048.35498412,0.0002,2]
[332600910,1721333438165,-341.48992898,0.00020711,2]
[332600912,1721333438176,-153.0,0.00020712,2]
[332600914,1721333438185,-306.0,0.00020712,2]
[332600915,1721333438195,-401.8227936,0.00020712,2]
[332600917,1721333438204,-151.0,0.00020916,2]
[332600919,1721333438213,-151.0,0.00020916,2]
[332600921,1721333438223,-151.0,0.00020916,2]
[332600923,1721333438232,-500.0,0.00020917,7]
[332600925,1721333438242,-500.0,0.00020917,7]
[332600927,1721333438252,-500.0,0.00020917,7]
[332600929,1721333438261,-500.0,0.00020917,7]
[332600931,1721333438271,-528.51,0.00020917,7]
[332600932,1721333438280,-151.0,0.00020917,2]
[332600934,1721333438289,-151.0,0.00020917,2]
[332600936,1721333438298,-316.348013,0.00020917,2]
[332600937,1721333438308,-316.348013,0.00020917,2]
[332600939,1721333438317,-151.0,0.00020917,2]
[332600940,1721333438326,-155.143711,0.00020917,2]
[332600942,1721333438335,-151.0,0.00020917,2]
[332600944,1721333438344,-155.143711,0.00020917,2]
[332600946,1721333438354,-151.0,0.00020917,2]
[332600947,1721333438363,-151.0,0.00020917,2]
[332600949,1721333438373,-151.0,0.00020917,2]
[332600950,1721333438383,-151.0,0.00020917,2]
[332600951,1721333438392,-151.0,0.00020917,2]
[332600952,1721333438401,-555.162069,0.00020917,2]
[332600953,1721333438411,-555.162069,0.00020917,2]
[332600954,1721333438421,-1449.843795,0.00020917,2]
[332600955,1721333438434,-1449.843795,0.00020917,2]
[332600957,1721333438444,-151.0,0.00020941,2]
[332600958,1721333438453,-151.0,0.00020941,2]
[332600959,1721333438462,-151.0,0.00020941,2]
[332600960,1721333438473,-151.0,0.00020941,2]
[332600961,1721333438482,-246.719119,0.00020941,2]
[332600962,1721333438492,-246.719119,0.00020941,2]
[332600963,1721333438504,-151.0,0.00020941,2]
[332600964,1721333438514,-555.162069,0.00020941,2]
[332600965,1721333438524,-555.162069,0.00020941,2]
[332600966,1721333438533,-1449.843795,0.00020941,2]
[332600967,1721333438542,-1449.843795,0.00020941,2]
[332600968,1721333438551,-1404.0,0.00020941,2]
[332600969,1721333438561,-30415.51219908,0.00021,2]
[332600970,1721333438571,-151.0,0.00021,2]
[332600971,1721333438580,-151.0,0.00021,2]
[332600972,1721333438590,-151.0,0.00021,2]
[332600973,1721333438600,-151.0,0.00021,2]
[332600974,1721333438609,-151.0,0.00021,2]
[332600976,1721333438620,-151.0,0.00021,2]
[332600977,1721333438629,-151.0,0.00021,2]
[332600978,1721333438639,-225.225866,0.00021,2]
[332600979,1721333438649,-151.0,0.00021,2]
[332600980,1721333438658,-151.0,0.00021,2]
[332600981,1721333438668,-246.719119,0.00021,2]
[332600982,1721333438678,-246.719119,0.00021,2]
[332600983,1721333438688,-316.348013,0.00021,2]
[332600984,1721333438697,-246.719119,0.00021,2]
[332600985,1721333438707,-316.348013,0.00021,2]
[332600986,1721333438716,-246.719119,0.00021,2]
[332600987,1721333438726,-316.348013,0.00021,2]
[332600988,1721333438735,-316.348013,0.00021,2]
[332600989,1721333438745,-151.0,0.00021,2]
[332600990,1721333438755,-151.0,0.00021,2]
[332600991,1721333438767,-155.143711,0.00021,2]
[332600992,1721333438777,-155.143711,0.00021,2]
[332600993,1721333438787,-151.0,0.00021,2]
[332600994,1721333438797,-155.143711,0.00021,2]
[332600995,1721333438806,-151.0,0.00021,2]
[332600996,1721333438816,-155.143711,0.00021,2]
[332600997,1721333438825,-151.0,0.00021,2]
[332600998,1721333438835,-151.0,0.00021,2]
[332600999,1721333438845,-151.0,0.00021,2]
[332601000,1721333438854,-151.0,0.00021,2]
[332601001,1721333438863,-287.24156,0.00021,2]
[332601002,1721333438873,-151.0,0.00021,2]
[332601003,1721333438882,-555.162069,0.00021,2]
[332601004,1721333438892,-555.162069,0.00021,2]
[332601005,1721333438902,-555.162069,0.00021,2]
[332601006,1721333438912,-555.162069,0.00021,2]
[332601007,1721333438922,-555.162069,0.00021,2]
[332601008,1721333438932,-555.162069,0.00021,2]
[332601009,1721333438942,-1449.843795,0.00021,2]